{"text_format":"1","workbook":"xlsx","n_sheets":48,"sheets":["Инструкция","Лог обновления","Титульный","Территории","Дифференциация","Доступ к товарам и услугам","Публикация в других источниках","Сведения об изменении","Комментарии","Проверка","AllSheetsInThisWorkbook","TEHSHEET","modCheckCyan","modSettings","modfrmSetForPrint","modInfo","et_union_hor","et_union_vert","modList00","modList01","modList02","modList03","modList07","modList09","modHTTP","modfrmRegion","MR_LIST","REESTR_VT","REESTR_VED","modfrmReestrObj","DataOrg","modProv","modReestr","modfrmReestr","modUpdTemplMain","REESTR_ORG","modClassifierValidate","modHyp","modfrmDateChoose","modComm","modThisWorkbook","REESTR_MO","modfrmReestrMR","modServiceModule","modfrmCheckUpdates","REESTR_DS","REESTR_CHS","REESTR_LINK"],"not_rendered":{"charts":0,"images":22,"macros":1,"external_links":0,"defined_names":195,"comments":0,"pivot_tables":0},"unopened":[],"bounds":{"document_bytes":16777216,"sheet_cells":100000,"rows_first":2000,"rows_last":500,"rows_between":2000,"halvings":0,"cell_chars":16384,"cell_head_chars":4096},"cells_cut":0,"cells_raw":0,"read":"whole","date_system":"1900"}

{"sheet":"Инструкция","index":0,"n_rows":90,"n_cols":27,"rows_kept":90,"cut":false,"hidden":false,"merged":[[73,5,73,23],[74,4,74,23],[75,4,75,23],[76,4,76,23],[80,4,80,23],[81,4,81,23],[77,4,77,23],[82,4,82,23],[87,5,87,18],[89,5,89,23],[60,7,60,23],[85,4,85,23],[79,4,79,23],[69,4,69,23],[78,4,78,23],[70,4,70,23],[72,5,72,23],[58,7,58,23],[59,4,59,6],[71,5,71,23],[57,4,57,23],[21,15,21,23],[34,4,38,23],[39,4,39,23],[40,4,44,23],[45,4,56,23],[83,4,83,23],[22,15,22,22],[21,5,21,12],[1,1,1,6],[2,1,2,2],[4,1,4,24],[6,4,18,23],[20,5,20,12],[20,15,20,23],[58,4,58,6]]}
[null,null,null,null,null,null,null,null,null,null,null,null,null,null,null,null,null,null,null,null,null,null,null,null,null,null," (требуется обновление)"]
[null,{"$f":"\"Код шаблона: \" & GetCode()","v":"Код шаблона: JKH.OPEN.INFO.QUARTER.HVS.6"}]
[null,{"$f":"\"Версия \" & GetVersion()","v":"Версия 1.0"}]
[]
[null,"Информация о наличии (отсутствии) технической возможности подключения к централизованной системе холодного водоснабжения, а также о регистрации и ходе реализации заявок о подключении к централизованной системе холодного водоснабжения"]
[]
[null,null,null,null,"• На рабочем месте должен быть установлен MS Office 2003 SP3, 2007 SP3, 2010, 2013 с полной версией MS Excel                                                                                                                                • Для корректной работы отчета необходим доступ к сети \"Интернет\"                                                         \n                                                                                                                                                          • Макросы во время работы должны быть включены (!)\n• Для корректной работы отчёта требуется выбрать низкий уровень безопасности\n(В меню MS Excel 2003: Сервис | Макрос | Безопасность | выбрать пункт «Низкая безопасность» | OK)\n(В меню MS Excel 2007/2010/2013: Параметры Excel | Центр управления безопасностью | Параметры центра управления безопасностью | Параметры макросов | Включить все макросы | ОК)\n\n• Если Вы работаете в табличном процессоре MS Excel 2007 и выше, то можете использовать для работы формат XLSB (Двоичная книга Excel). При работе в формате XLSB заметно быстрее происходит сохранение файла, а также уменьшается размер по сравнению с форматами XLS и XLSM\n\n• Не рекомендуется снимать защиту с листов и каким-либо образом модифицировать защищаемые формулы и расчётные поля, в противном случае, отчёт будет отклонён системой\n• При сохранении не следует выбирать формат XLSX (Книга Excel), так как в указанном формате макросы, необходимые для работы отчёта, безвозвратно удаляются"]
[]
[]
[]
[]
[]
[]
[]
[]
[]
[]
[]
[]
[]
[null,null,null,null,"A"," - не обязательные для заполнения",null,null,null,null,null,null,null,null,"A"," - с формулами и константами"]
[null,null,null,null,"A"," - обязательные для заполнения",null,null,null,null,null,null,null,null,"A"," - с выбором значений до двойному клику,"]
[null,null,null,null,null,null,null,null,null,null,null,null,null,null,null,"либо с возможностью выбора даты из календаря или ручного ввода"]
[]
[]
[]
[]
[]
[]
[]
[]
[]
[]
[]
[null,null,null,null,"Если в предложенном Вам списке необходимая организация, МР/МО отсутствуют, обновите реестры с помощью кнопок\n\nВ результате синхронизации с базой данных список организаций (МР/МО) будет заменён актуальным (механизм синхронизации требует подключения к сети Интернет и основан на использовании протокола HTTPS (TCP порт 443))\n\nЕсли после обновления Вам не удалось найти необходимую организацию в списке, обратитесь к ответственному за поддержание реестра Вашего региона."]
[]
[]
[]
[]
[]
[]
[]
[]
[]
[]
[null,null,null,null,"• При сохранении шаблона осуществляется проверка корректности данных, в том числе на наличие значений в ячейках, обязательных для заполнения\n\n• Если какая-то ячейка не удовлетворяет условию проверки, на лист «Проверка» добавляется гиперссылка на данную ячейку и указывается причина ошибки\n\n• В колонке «Статус» для каждого сообщения возможны 2 значения: ошибка и предупреждение\n\n• При наличии сообщений со статусом «Ошибка» шаблон будет отклонён системой и не будет загружен в хранилище данных, сообщения со статусом «Предупреждение» носят информационный характер, и такой шаблон будет принят системой"]
[]
[]
[]
[]
[]
[]
[]
[]
[]
[]
[]
[null,null,null,null,"Обратиться в службу технической поддержки"]
[]
[]
[]
[]
[]
[]
[]
[]
[]
[]
[]
[null,null,null,null,"Законодательная основа шаблона"]
[null,null,null,null,"Данный шаблон разработан в соответствии с:"]
[null,null,null,null," • ","Постановлением Правительства РФ от 17.01.2013 N 6 \"О стандартах раскрытия информации в сфере водоснабжения и водоотведения\""]
[null,null,null,null," • ","Приказом ФСТ России от 15.05.2013 N 129 \"Об утверждении форм предоставления информации, подлежащей раскрытию, организациями, осуществляющими горячее водоснабжение, холодное водоснабжение и водоотведение, и органами регулирования тарифов, а также Правил заполнения таких форм\""]
[]
[null,null,null,null,"Принципы работы с шаблоном"]
[null,null,null,null,"  Перед началом работы с шаблоном Вам необходимо нажать кнопку \"Приступить к заполнению\", после чего на форме выбора выбрать из выпадающего списка нужный субъект РФ. После выбора субъекта РФ в шаблоне отобразятся листы для заполнения."]
[null,null,null,null,"  На листе «Титульный» нужно заполнить все ячейки голубого цвета."]
[null,null,null,null,"  На листе «Уведомление» «Адрес сайта в сети интернет» вводите, не нарушая цвет ячейки /если копируете гиперссылку из браузера, то выполните двойной щелчок левой кнопки мыши по ячейке и только после этого можете вставить скопированный элемент/.\n"]
[null,null,null,null,"  При вводе даты на расчетных листах необходимо выбрать дату из календаря (иконка справа от выбранной ячейки), либо ввести дату непосредственно в ячейку в формате - 'ДД.ММ.ГГГГ'."]
[null,null,null,null,"  Если какой-либо из показателей на расчетных листах для Вашей организации отсутствует, введите в поле, обязательное для заполнение, «0» (для числовых показателей) и «-» (для текстовых).\n"]
[null,null,null,null,"  Внимательно следите за информационными сообщениями на расчетных листах."]
[null,null,null,null,"  Все необходимые комментарии по всем формам Вы можете отразить на листе «Комментарии»."]
[null,null,null,null,"Инструкция по загрузке сопроводительных материалов с помощью \"ЕИАС Мониторинг\""]
[null,null,null,null,"Получить более полную Инструкцию для данного шаблона"]
[]
[null,null,null,null,"При наличии подключения к Интернет, можно автоматически проверять наличие доступных обновлений. Выберите способ оповещения о наличии обновлений для отчёта:"]
[]
[null,null,null,null,null,"проверять доступные обновления (рекомендуется)",null,null,null,null,null,null,null,null,null,null,null,null,null,null,null,null,null,null,null,null,"y"]
[]
[null,null,null,null,null,"никогда не проверять наличие обновлений (не рекомендуется)"]

{"sheet":"Лог обновления","index":1,"n_rows":13,"n_cols":3,"rows_kept":13,"cut":false,"hidden":true,"merged":[]}
["Дата/Время","Сообщение","Статус"]
["2018-01-23T10:54:29","Проверка доступных обновлений...","Информация"]
["2018-01-23T10:54:30","Нет доступных обновлений для отчёта с кодом JKH.OPEN.INFO.QUARTER.HVS.6!","Информация"]
["2018-01-23T10:55:00","Проверка доступных обновлений...","Информация"]
["2018-01-23T10:55:01","Нет доступных обновлений для отчёта с кодом JKH.OPEN.INFO.QUARTER.HVS.6!","Информация"]
["2018-01-23T11:02:55","Проверка доступных обновлений...","Информация"]
["2018-01-23T11:02:56","Нет доступных обновлений для отчёта с кодом JKH.OPEN.INFO.QUARTER.HVS.6!","Информация"]
["2018-01-23T11:10:20","Проверка доступных обновлений...","Информация"]
["2018-01-23T11:10:21","Нет доступных обновлений для отчёта с кодом JKH.OPEN.INFO.QUARTER.HVS.6!","Информация"]
["2018-01-23T11:14:51","Проверка доступных обновлений...","Информация"]
["2018-01-23T11:14:53","Нет доступных обновлений для отчёта с кодом JKH.OPEN.INFO.QUARTER.HVS.6!","Информация"]
["2018-02-08T10:39:27","Проверка доступных обновлений...","Информация"]
["2018-02-08T10:39:28","Нет доступных обновлений для отчёта с кодом JKH.OPEN.INFO.QUARTER.HVS.6!","Информация"]

{"sheet":"Титульный","index":2,"n_rows":41,"n_cols":6,"rows_kept":41,"cut":false,"hidden":false,"merged":[[4,4,4,5]]}
[null,null,null,null,null,26355286]
[]
[]
[null,null,null,null,null,{"$f":"version","v":"Версия 1.0"}]
[null,null,null,null,"Информация о наличии (отсутствии) технической возможности подключения к централизованной системе холодного водоснабжения, а также о регистрации и ходе реализации заявок о подключении к централизованной системе холодного водоснабжения"]
[]
[null,null,null,null,"Субъект РФ","Хабаровский край"]
[]
[null,null,null,null,"Публикация2","На сайте регулирующего органа"]
[]
[null,null,null,null,"По решению организации информация раскрыта на ее официальном сайте в сети Интернет?","да"]
[]
[null,null,null,null,"Тип отчета","Первичное раскрытие информации"]
[null,null,null,null,"Дата внесения изменений в информацию, подлежащую раскрытию"]
[]
[null,null,null,null,"Применяется дифференциация тарифа по централизованным системам теплоснабжения?"]
[null,null,null,null,"Информация по скольким централизованным системам теплоснабжения будет заполнена в шаблоне?"]
[]
[null,null,null,null,null,"Отчетный период"]
[null,null,null,null,"Год",2017]
[null,null,null,null,"Квартал","IV квартал"]
[]
[null,null,null,null,"Является ли данное юридическое лицо подразделением (филиалом) другой организации"]
[]
[]
[null,null,null,null,"Наименование организации (филиала)","ОАО \"Корфовский каменный карьер\""]
[]
[]
[null,null,null,null,"Наименование головной организации"]
[null,null,null,null,"ИНН","2720002950"]
[null,null,null,null,"КПП","272001001"]
[null,null,null,null,"Вид деятельности"]
[]
[null,null,null,null,"Почтовый адрес регулируемой организации","680504 Хабаровский край, Хабаровский район, пос. Корфовский, ул. Промышленная 5"]
[null,null,null,null,"Фамилия, имя, отчество руководителя","Левин Дмитрий Владимирович"]
[]
[null,null,null,null,null,"Ответственный за составление формы"]
[null,null,null,null,"Фамилия, имя, отчество","Макарова Светлана Геннадьевна"]
[null,null,null,null,"Должность","Экономист"]
[null,null,null,null,"(код) номер телефона","(4212) 49-23-68"]
[null,null,null,null,"e-mail","oao-kkk@bk.ru"]

{"sheet":"Территории","index":3,"n_rows":16,"n_cols":17,"rows_kept":16,"cut":false,"hidden":false,"merged":[[3,3,3,7],[4,3,4,7],[6,3,6,4],[6,5,6,6],[9,5,9,6],[8,8,8,11],[9,8,9,9],[8,5,8,7],[10,8,10,9],[8,3,8,4],[12,3,14,3],[12,4,14,4],[12,5,13,5],[12,6,13,6],[12,7,13,7],[10,5,10,6]]}
[]
[]
[]
[null,null,null,"Перечень муниципальных районов и муниципальных образований (территорий оказания услуг)"]
[null,null,null,{"$f":"IF(org=0,\"Не определено\",org)","v":"ОАО \"Корфовский каменный карьер\""}]
[]
[null,null,null,null,null,"да"]
[]
[null,null,null,"Территория оказания услуг",null,"Муниципальный район",null,null,"Муниципальное образование"]
[null,null,null,"№ п/п","Наименование","№ п/п",null,"Наименование","№ п/п",null,"Наименование","ОКТМО"]
[null,null,null,"1","2","3",null,"4","5",null,"6","7"]
[null,null,null,0,null,"",null,null,""]
[null,"man",null,1,"Хабаровский муниципальный район, пос.Корфовский (08655155)","",1,"Хабаровский муниципальный район","","1","Поселок Корфовский","08655155",null,null,null,null,"Хабаровский муниципальный район, пос.Корфовский (08655155)"]
[null,null,null,null,null,null,null,null,"",null,""]
[null,null,null,null,null,"",null,"",""]
[null,"man",null,null,"","",null,null,"",null,null,null,null,null,null,null,"Добавить территорию оказания услуг"]

{"sheet":"Дифференциация","index":4,"n_rows":26,"n_cols":26,"rows_kept":26,"cut":false,"hidden":false,"merged":[[17,0,18,0],[17,3,17,4],[3,3,3,8],[4,3,4,8],[7,4,7,5],[8,1,8,3],[5,0,6,5],[7,1,7,3],[8,4,8,5],[9,1,9,3],[9,4,9,5],[13,1,13,3],[10,4,10,5],[24,2,25,2],[11,1,11,3],[12,1,12,3],[21,4,23,4],[21,5,23,5],[10,1,10,3],[21,3,23,3],[18,6,18,7],[21,6,22,6],[21,7,22,7],[21,8,22,8],[21,9,22,9],[17,5,17,8],[17,9,17,12],[19,6,19,7],[19,10,19,11],[18,10,18,11]]}
[]
[]
[]
[null,null,null,"Информация о наличии (отсутствии) технической возможности подключения к централизованной системе холодного водоснабжения, а также о регистрации и ходе реализации заявок о подключении к централизованной системе холодного водоснабжения"]
[null,null,null,{"$f":"IF(org=0,\"Не определено\",org)","v":"ОАО \"Корфовский каменный карьер\""}]
[]
[]
[]
[]
[]
[]
[]
[]
[]
[]
[]
[]
[null,null,null,"Вид деятельности",null,"Дифференциация по территориям оказания услуг",null,null,null,"Дифференциация по централизованным системам холодного водоснабжения"]
[null,null,null,"№ п/п","Наименование","да/нет","№ п/п",null,"Наименование","да/нет","№ п/п",null,"Наименование"]
[null,null,null,"1","2","3","4",null,"5","6","7",null,"8"]
[]
[null,null,null,"1","Холодное водоснабжение, в т.ч. транспортировка воды, включая распределение воды","нет",null,1,null,"нет","","1","",null,null,null,null,null,null,null,null,null,null,64235585,"a",1705000]
[null,null,null,null,null,null,null,null,null,null,"",null,""]
[null,null,null,null,null,null,null,null,"",null,""]
[null,null,null,null,"",null,null,null,null,null,""]
[null,null,null,null,null,null,null,null,null,null,""]

{"sheet":"Доступ к товарам и услугам","index":5,"n_rows":15,"n_cols":10,"rows_kept":15,"cut":false,"hidden":false,"merged":[[12,8,12,9],[4,3,4,9],[12,3,14,3],[12,4,14,4],[12,5,14,5],[12,6,13,6],[12,7,13,7],[6,3,7,3],[6,4,7,4],[6,5,7,5],[6,6,7,6],[6,7,7,7],[6,8,6,9],[3,3,3,9]]}
[null,null,null,null,null,null,null,null,null,4]
[]
[]
[null,null,null,"Информация о наличии (отсутствии) технической возможности подключения к централизованной системе холодного водоснабжения, а также о регистрации и ходе реализации заявок о подключении к централизованной системе холодного водоснабжения"]
[null,null,null,{"$f":"IF(org=0,\"Не определено\",org)","v":"ОАО \"Корфовский каменный карьер\""}]
[]
[null,null,null,"№ п/п","Информация, подлежащая раскрытию","Единица измерения","О","№ п/п","Вид деятельности:\r\n  - Холодное водоснабжение, в т.ч. транспортировка воды, включая распределение воды\r\n\r\nТерритория оказания услуг:\r\n  - без дифференциации\r\n\r\nЦентрализованная система холодного водоснабжения:\r\n  - без дифференциации"]
[null,null,null,null,null,null,null,null,"Показатель","Комментарий"]
[null,null,null,"1","2","3",null,null,{"$f":"J1&\".1\"","v":"4.1"},{"$f":"J1&\".2\"","v":"4.2"}]
[null,null,null,1,"Количество поданных заявок","шт",null,null,0]
[null,null,null,2,"Количество исполненных заявок","шт",null,null,0]
[null,null,null,3,"Количество заявок с решением об отказе в подключении","шт",null,null,0]
[null,null,null,4,"Резерв мощности централизованной системы холодного водоснабжения в течение квартала","тыс.куб.м/сутки",null,1,"открытая"]
[null,null,null,null,null,null,null,null,2.16]
[null,null,null,null,null,null,null,null,"Добавить централизованную систему холодного водоснабжения"]

{"sheet":"Публикация в других источниках","index":6,"n_rows":12,"n_cols":8,"rows_kept":12,"cut":false,"hidden":false,"merged":[[7,3,8,3],[7,4,8,4],[7,5,7,7],[4,3,4,4],[5,3,5,4]]}
[]
[]
[]
[]
[null,null,null,"Публикация в других источниках\n(публикация информации по решению организации на ее официальном сайте в сети \"Интернет\")"]
[null,null,null,{"$f":"IF(org=0,\"Не определено\",org)","v":"ОАО \"Корфовский каменный карьер\""}]
[]
[null,null,null,"№ п/п","Описание опубликованной информации","Официальный сайт организации в сети \"Интернет\""]
[null,null,null,null,null,"Дата\nразмещения информации","Адрес официальной страницы сайта\nв сети \"Интернет\", на котором размещена информация","Ссылка на снимок экрана\nофициальной страницы сайта в сети \"Интернет\", на котором размещена информация"]
[null,null,null,"1","2","3","4","5"]
[null,null,null,1,"Информация о наличии (отсутствии) технической возможности подключения к централизованной системе холодного водоснабжения, а также о регистрации и ходе реализации заявок о подключении к централизованной системе холодного водоснабжения (пункт 21 Постановления Правительства РФ от 17.01.2013 N 6 \"О стандартах раскрытия информации в сфере водоснабжения и водоотведения\")","23.01.2018","oaokkk.ru","https://tariff.eias.ru/disclo/get_file?p_guid=fea5b518-edd8-473e-85ab-fe9f4fd11da6"]
[null,null,null,null,"Добавить опубликованную информацию"]

{"sheet":"Сведения об изменении","index":7,"n_rows":14,"n_cols":5,"rows_kept":14,"cut":false,"hidden":true,"merged":[[6,3,6,4],[7,3,7,4]]}
[]
[]
[]
[]
[]
[]
[null,null,null,"Сведения об изменениях в первоначально опубликованной информации"]
[null,null,null,{"$f":"IF(org=0,\"Не определено\",org)","v":"ОАО \"Корфовский каменный карьер\""}]
[]
[null,null,null,"№ п/п","Сведения"]
[null,null,null,"1","2"]
[null,null,null,0]
[null,null,null,1]
[null,null,null,null,"Добавить строку"]

{"sheet":"Комментарии","index":8,"n_rows":13,"n_cols":5,"rows_kept":13,"cut":false,"hidden":false,"merged":[[6,3,6,4],[7,3,7,4]]}
[]
[]
[]
[]
[]
[]
[null,null,null,"Комментарии"]
[null,null,null,{"$f":"IF(org=0,\"Не определено\",org)","v":"ОАО \"Корфовский каменный карьер\""}]
[]
[null,null,null,"№ п/п","Комментарий"]
[null,null,null,"1","2"]
[null,null,null,0]
[null,null,null,null,"Добавить"]

{"sheet":"Проверка","index":9,"n_rows":4,"n_cols":5,"rows_kept":4,"cut":false,"hidden":false,"merged":[[1,1,1,4]]}
[]
[null,"Результат проверки"]
[]
[null,"Ссылка1","Ссылка2","Причина","Статус"]

{"sheet":"AllSheetsInThisWorkbook","index":10,"n_rows":39,"n_cols":2,"rows_kept":39,"cut":false,"hidden":true,"merged":[]}
["Расчетные листы","Скрытые листы"]
["Инструкция","AllSheetsInThisWorkbook"]
["Лог обновления","TEHSHEET"]
["Титульный","modCheckCyan"]
["Территории","modSettings"]
["Дифференциация","modfrmSetForPrint"]
["Доступ к товарам и услугам","modInfo"]
["Публикация в других источниках","et_union_hor"]
["Сведения об изменении","et_union_vert"]
["Комментарии","modList00"]
["Проверка","modList01"]
[null,"modList02"]
[null,"modList03"]
[null,"modList07"]
[null,"modList09"]
[null,"modHTTP"]
[null,"modfrmRegion"]
[null,"MR_LIST"]
[null,"REESTR_VT"]
[null,"REESTR_VED"]
[null,"modfrmReestrObj"]
[null,"DataOrg"]
[null,"modProv"]
[null,"modReestr"]
[null,"modfrmReestr"]
[null,"modUpdTemplMain"]
[null,"REESTR_ORG"]
[null,"modClassifierValidate"]
[null,"modHyp"]
[null,"modfrmDateChoose"]
[null,"modComm"]
[null,"modThisWorkbook"]
[null,"REESTR_MO"]
[null,"modfrmReestrMR"]
[null,"modServiceModule"]
[null,"modfrmCheckUpdates"]
[null,"REESTR_DS"]
[null,"REESTR_CHS"]
[null,"REESTR_LINK"]

{"sheet":"TEHSHEET","index":11,"n_rows":62,"n_cols":14,"rows_kept":62,"cut":false,"hidden":true,"merged":[]}
["NSRF",null,"year_list","logical","Месяц\n(MONTH)","Квартал\n(QUARTER)","Месяц\n(kind_of_publication)","Единица измерения объема оказываемых услуг ГВС\n/kind_of_unit_GVS/","Вид тарифа\n/list_of_tariff/","mr_id","версия шаблона\n (DocProp_Version)","0.1","Тип отчета\ndata_type","Print_form"]
["Алтайский край",null,2013,"да","январь","I квартал","На официальном сайте организации","тыс.куб.м/сутки",null,52,"код шаблона\n(DocProp_TemplateCode)","JKH.OPEN.INFO.QUARTER.WARM.570","Первичное раскрытие информации","Форма 1.1"]
["Амурская область",null,2014,"нет","февраль","II квартал","На сайте регулирующего органа","Гкал/час","Без дифференциации","sys_id","сфера\n(TSphere)","ТС","Корректировка ранее раскрытой информации","Форма 1.2"]
["Астраханская область",null,2015,null,"март","III квартал",null,"куб.м/час",null,104,"сфера(латиница)\n(TSphere_trans)","WARM","Изменения в раскрытой ранее информации","Форма 1.3"]
["Белгородская область",null,2016,null,"апрель","IV квартал",null,null,null,null,"сфера расширено\n(TSphere_full)",null,null,"Форма 1.4"]
["Брянская область",null,2017,null,"май",null,null,null,null,null,null,null,null,"Форма 1.5"]
["Владимирская область",null,null,null,"июнь",null,null,null,null,null,null,null,null,"Форма 1.6"]
["Волгоградская область",null,null,null,"июль",null,null,null,null,null,"true",null,null,"Форма 1.7"]
["Еврейская автономная область",null,null,null,"август",null,null,null,null,null,null,null,null,"Форма 1.8"]
["Забайкальский край",null,null,null,"сентябрь",null,null,null,null,null,null,null,null,"Форма 1.9"]
["Ивановская область",null,null,null,"октябрь",null,null,null,null,null,"https://appsrv.regportal-tariff.ru/procwsxls/",null,null,"Форма 1.10"]
["Иркутская область",null,null,null,"ноябрь",null,null,null,null,null,null,null,null,"Форма 1.11"]
["Кабардино-Балкарская республика",null,null,null,"декабрь",null,null,null,null,null,null,null,null,"Форма 1.12"]
["Калининградская область",null,null,null,null,null,null,null,null,null,null,null,null,"Форма 2.1"]
["Калужская область",null,null,null,null,null,null,null,null,null,null,null,null,"Форма 2.2"]
["Карачаево-Черкесская республика",null,null,null,null,null,"Текущая дата",null,null,null,null,null,null,"Форма 2.3"]
["Кемеровская область",null,"Организация",{"$f":"IF(f_year = \"\",\"\", IF(LEN(f_quart)=0,\"\",IF(f_quart=\"I квартал\", \"01.01.\"&f_year,IF(f_quart=\"II квартал\",\"01.04.\"&f_year,(IF(f_quart=\"III квартал\", \"01.07.\"&f_year,\"01.10.\"&f_year)))) ))","v":"01.10.2017"},{"$f":"IF(f_year = \"\",\"\", IF(LEN(f_quart)=0,\"\",IF(f_quart=\"I квартал\", \"31.03.\"& f_year,IF(f_quart=\"II квартал\",\"30.06.\"& f_year,(IF(f_quart=\"III квартал\", \"30.09.\"& f_year,\"31.12.\"& f_year)))) ))","v":"31.12.2017"},null,"08.02.2018 8:39:20",null,null,null,null,null,null,"Форма 2.4"]
["Костромская область",null,null,null,null,null,null,null,null,null,null,null,null,"Форма 2.5"]
["Краснодарский край",null,null,null,null,null,"Признак изменения данных на листе Доступ к товарам и услугам",null,null,null,null,null,null,"Форма 2.6"]
["Красноярский край",null,"Виды деятельности",null,null,null,true,null,null,null,null,null,null,"Форма 2.7"]
["Ленинградская область",null,null,null,null,null,null,null,null,null,null,null,null,"Форма 2.8"]
["Мурманская область",null,null,null,null,null,null,null,null,null,null,null,null,"Форма 2.9"]
["Ненецкий автономный округ",null,null,null,null,null,null,null,null,null,null,null,null,"Форма 2.10"]
["Нижегородская область",null,null,null,null,null,null,null,null,null,null,null,null,"Форма 2.11"]
["Новгородская область",null,null,null,null,null,null,null,null,null,null,null,null,"Форма 2.12"]
["Новосибирская область",null,null,null,null,null,null,null,null,null,null,null,null,"Форма 2.13"]
["Омская область",null,null,null,null,null,null,null,null,null,null,null,null,"Форма 2.14"]
["Оренбургская область",null,null,null,null,null,null,null,null,null,null,null,null,"Форма 3.1"]
["Орловская область",null,null,null,null,null,null,null,null,null,null,null,null,"Форма 3.2"]
["Пермский край",null,null,null,null,null,null,null,null,null,null,null,null,"Форма 3.3"]
["Приморский край",null,null,null,null,null,null,null,null,null,null,null,null,"Форма 3.4"]
["Псковская область",null,null,null,null,null,null,null,null,null,null,null,null,"Форма 3.5"]
["Республика Адыгея",null,null,null,null,null,null,null,null,null,null,null,null,"Форма 3.6"]
["Республика Башкортостан",null,null,null,null,null,null,null,null,null,null,null,null,"Форма 3.7"]
["Республика Бурятия",null,null,null,null,null,null,null,null,null,null,null,null,"Форма 3.8"]
["Республика Дагестан",null,null,null,null,null,null,null,null,null,null,null,null,"Форма 3.9"]
["Республика Ингушетия",null,null,null,null,null,null,null,null,null,null,null,null,"Форма 3.10"]
["Республика Калмыкия",null,null,null,null,null,null,null,null,null,null,null,null,"Форма 3.11"]
["Республика Карелия",null,null,null,null,null,null,null,null,null,null,null,null,"Форма 3.12"]
["Республика Крым",null,null,null,null,null,null,null,null,null,null,null,null,"Форма 4.1"]
["Республика Мордовия",null,null,null,null,null,null,null,null,null,null,null,null,"Форма 4.2"]
["Республика Саха",null,null,null,null,null,null,null,null,null,null,null,null,"Форма 4.3"]
["Республика Татарстан",null,null,null,null,null,null,null,null,null,null,null,null,"Форма 4.4"]
["Республика Тыва"]
["Республика Хакасия"]
["Ростовская область"]
["Рязанская область"]
["Самарская область"]
["Смоленская область"]
["Ставропольский край"]
["Тверская область"]
["Томская область"]
["Тульская область"]
["Тюменская область"]
["Удмуртская республика"]
["Хабаровский край"]
["Ханты-Мансийский автономный округ"]
["Челябинская область"]
["Чеченская Республика"]
["Чувашская республика"]
["Ярославская область"]
["г.Севастополь"]

{"sheet":"modCheckCyan","index":12,"n_rows":19,"n_cols":1,"rows_kept":19,"cut":false,"hidden":true,"merged":[]}
[]
[{"$f":"IF('Сведения об изменении'!$E$13=\"\",1,0)","v":1}]
[{"$f":"IF(Территории!$E$13=\"\",1,0)","v":0}]
[{"$f":"IF(Дифференциация!$E$22=\"\",1,0)","v":0}]
[{"$f":"IF(Дифференциация!$F$22=\"\",1,0)","v":0}]
[{"$f":"IF(Дифференциация!$J$22=\"\",1,0)","v":0}]
[{"$f":"IF('Доступ к товарам и услугам'!$I$11=\"\",1,0)","v":0}]
[{"$f":"IF('Доступ к товарам и услугам'!$I$11=\"Введите наименование централизованной системы холодного водоснабжения\",1,0)","v":0}]
[{"$f":"IF('Доступ к товарам и услугам'!$I$12=\"\",1,0)","v":0}]
[{"$f":"IF('Доступ к товарам и услугам'!$I$12=\"Введите наименование централизованной системы холодного водоснабжения\",1,0)","v":0}]
[{"$f":"IF('Доступ к товарам и услугам'!$I$13=\"\",1,0)","v":0}]
[{"$f":"IF('Доступ к товарам и услугам'!$I$13=\"Введите наименование централизованной системы холодного водоснабжения\",1,0)","v":0}]
[{"$f":"IF('Доступ к товарам и услугам'!$I$14=\"\",1,0)","v":0}]
[{"$f":"IF('Доступ к товарам и услугам'!$I$14=\"Введите наименование централизованной системы холодного водоснабжения\",1,0)","v":0}]
[{"$f":"IF('Доступ к товарам и услугам'!$I$10=\"\",1,0)","v":0}]
[{"$f":"IF('Доступ к товарам и услугам'!$I$10=\"Введите наименование централизованной системы холодного водоснабжения\",1,0)","v":0}]
[{"$f":"IF('Публикация в других источниках'!$F$11=\"\",1,0)","v":0}]
[{"$f":"IF('Публикация в других источниках'!$G$11=\"\",1,0)","v":0}]
[{"$f":"IF('Публикация в других источниках'!$H$11=\"\",1,0)","v":0}]

{"sheet":"modSettings","index":13,"n_rows":14,"n_cols":3,"rows_kept":14,"cut":false,"hidden":true,"merged":[]}
["Версия шаблона","VERS_TEMP","BASE"]
["Настройка справочника наименований тарифов (Y / N)","FLAG_NAME_OF_TARIFF","NN"]
["Функционал уведомлений о раскрытии (Y / N)","FLAG_OPEN_UVED","YY"]
["Функционал отслеживания типа отчета (Y / N)","FLAG_TYPE_OF_REP","YY"]
["Подрезание МР/МО по сфере оказания услуг (Y / N)","FLAG_MR_MO","NN"]
["Печать шаблона (Y / N)","FLAG_PRINT_TEMP","YY"]
["Печатные формы (Y / N)","FLAG_PRINT_FORM","YY"]
["Размещение в шаблоне ссылок на материалы Хранилища (Y / N)","FLAG_LINK_DOC","YY"]
["Отметка об отсутствии Интернета в МР/МО (Y / N)","FLAG_INTERNET_MR_MO","NN"]
["Отметка о сдаче бух баланса (Y / N)","FLAG_BUH_BAL","NN"]
["Отметка о доле выручки (Y / N)","FLAG_PART_OF_REV","NN"]
["Отображение данных об организации (Y / N)","FLAG_DATA_ORG","YY"]
["Флаг забора данных из шаблонов группы PRICE (Y / N)","FLAG_AUTOFILL_PRICE","NN"]
["Наличие ссылок на снимки экрана страницы сайта в сети Интернет, на которой размещена информация (Y / N)","FLAG_REF","YY"]

{"sheet":"modfrmSetForPrint","index":14,"n_rows":0,"n_cols":0,"rows_kept":0,"cut":false,"hidden":true,"merged":[]}

{"sheet":"modInfo","index":15,"n_rows":25,"n_cols":2,"rows_kept":25,"cut":false,"hidden":true,"merged":[[16,3,16,10],[10,3,10,10],[11,3,11,10],[12,3,12,10],[13,3,13,10],[14,3,14,10],[15,3,15,10]]}
[null,"Титульный"]
[7,"Шаблон предназначен для отправки в субъект РФ, на территории которого осуществляется оказание услуг"]
[1,"Шаблон предназначен для предоставления в регулирующий орган следующей информации:\n1) о наличии (отсутствии) технической возможности подключения к централизованной системе холодного водоснабжения, а также о регистрации и ходе реализации заявок о подключении к централизованной системе холодного водоснабжения согласно пункту 21 Постановления Правительства РФ от 17.01.2013 N 6;\n2) cведения о раскрытии соответствующей информации на официальном сайте организации в сети Интернет, подлежащие предоставлению в орган исполнительной власти субъекта Российской Федерации в области государственного регулирования цен (тарифов) согласно пункту 10 Постановления Правительства РФ от 17.01.2013 N6;\n3) cведения об изменении, подлежащие публикации, на основании требований пункта 11 Постановления Правительства РФ от 17.01.2013 N 6."]
[2,"Информация, подлежит обязательному опубликованию на официальном сайте в сети \"Интернет\" органа исполнительной власти субъекта Российской Федерации в области государственного регулирования цен (тарифов), и (или) на официальном сайте органа местного самоуправления поселения или городского округа в случае их наделения в соответствии с законом субъекта Российской Федерации полномочиями по государственному регулированию цен (тарифов), согласно пункту 3а) Постановления Правительства РФ от 05.07.2013 №570."]
[3,"Если информация публикуется только на официальном сайте в информационно-телекоммуникационной сети \"Интернет\" (далее – сети Интернет) органа исполнительной власти субъекта Российской Федерации в области государственного регулирования цен (тарифов) или на официальном сайте органа местного самоуправления поселения или городского округа в случае их наделения в соответствии с законом субъекта Российской Федерации полномочиями по государственному регулированию цен (тарифов), в поле \"По решению организации информация раскрыта на ее официальном сайте в сети Интернет?\" необходимо указать \"Нет\".\n\nЕсли же информация дополнительно публикуется на официальном сайте организации в сети Интернет, в поле \"По решению организации информация раскрыта на ее официальном сайте в сети Интернет?\" необходимо указать \"Да\"."]
[4,"По умолчанию установлено значение «Первичное раскрытие информации». Это означает, что информация раскрывается в соответствии с установленными сроком и периодичностью.\n\nВ случае, если в раскрываемой информации произошли изменения, сведения об этих изменениях подлежат опубликованию в шаблоне с типом отчета \"Изменения в раскрытой ранее информации\".\n\nВ случае, если в уже отправленном шаблоне обнаружена ошибка, исправленный шаблон необходимо отправить с типом отчета «Корректировка ранее раскрытой информации»."]
[5,"В случае, если регулируемыми организациями оказываются услуги по нескольким технологически не связанным между собой централизованным системам холодного водоснабжения и если в отношении указанных систем устанавливаются различные тарифы в сфере холодного водоснабжения, то информация раскрывается отдельно по каждой централизованной системе холодного водоснабжения."]
[6]
[null,"Публикация на прочих ресурсах"]
[null,"Вводите адрес сайта, не нарушая цвет ячейки /если копируете гиперссылку из браузера, то выполните двойной щелчок по ячейке и только после этого можете вставить скопированный элемент/\nДля редактирования указанной гиперссылки или перехода по ней выполните двойной щелчок левой клавиши мыши по ячейке"]
[null,{"$f":"IF(OR(FLAG_LINK_DOC=\"Y\",FLAG_LINK_DOC=\"NY\",FLAG_LINK_DOC=\"YY\"),\"Указывается ссылка на загруженный в Хранилище ЕИАС снимок экрана официальной страницы сайта, на котором размещена информация\",\"Указывается ссылка на загруженный в Интернет-ресурс снимок экрана официальной страницы сайта, на котором размещена информация\") & \". Для редактирования указанной гиперссылки или перехода по ней выполните двойной щелчок левой клавиши мыши по ячейке\"","v":"Указывается ссылка на загруженный в Хранилище ЕИАС снимок экрана официальной страницы сайта, на котором размещена информация. Для редактирования указанной гиперссылки или перехода по ней выполните двойной щелчок левой клавиши мыши по ячейке"}]
[null,"Указывается дата, по состоянию на которую информация стала доступной в сети Интернет для неограниченного круга лиц\nВыберите значение из календаря (иконка справа от выбранной ячейки), либо введите дату непосредственно в ячейку в формате - 'ДД.ММ.ГГГГ'"]
[null,"Территории"]
[1,"Наименование территории оказания услуг для целей идентификации"]
[2,"Муниципальные районы и муниципальные образования, на территории которых осуществляется оказание услуг"]
[null,"Дифференциация"]
[1,"В случае, если регулируемая организация осуществляет несколько видов деятельности, информация о которых подлежит раскрытию, информация по каждому виду деятельности раскрывается отдельно."]
[2,"Поле заполняется выбором значений из списка. Если значений для выбора нет - убедитесь, что лист \"Территории\" заполнен."]
[3,"Условное наименование централизованной системы холодного водоснабжения для целей идентификации."]
[4,"В случае, если регулируемыми организациями оказываются услуги по нескольким технологически не связанным между собой  централизованным системам холодного водоснабжения и если в отношении указанных централизованных систем устанавливаются различные тарифы в сфере холодного водоснабжения, то информация раскрывается отдельно по каждой централизованной системе холодного водоснабжения."]
[null,"Доступ к товарам и услугам"]
[1,"При использовании регулируемой организацией нескольких централизованных систем холодного водоснабжения информация о резерве мощности таких централизованных систем публикуется в отношении каждой централизованной системы холодного водоснабжения."]
[null,"Сведения об изменении"]
[1,"Лист заполняется в случае, если на Титульном листе в поле \"Тип отчета\" выбрано значение «Изменения в раскрытой ранее информации»."]
[null,"Нет доступных обновлений, версия отчёта актуальна"]

{"sheet":"et_union_hor","index":16,"n_rows":46,"n_cols":26,"rows_kept":46,"cut":false,"hidden":true,"merged":[[34,9,35,9],[24,5,25,5],[24,6,25,6],[24,7,25,7],[18,3,20,3],[18,4,20,4],[18,5,19,5],[18,6,19,6],[18,7,19,7],[40,6,41,6],[40,7,41,7],[40,8,41,8],[40,9,41,9],[34,8,35,8],[34,3,36,3],[34,4,36,4],[34,5,36,5],[34,6,35,6],[34,7,35,7]]}
[]
[]
["et_List02"]
[]
[]
[]
["et_Comm"]
[]
[]
[]
["et_List03"]
[]
[]
[]
[]
[]
["et_List09_0"]
[]
[null,"auto",null,1,null,null,1,null,null,"1"]
[null,null,null,null,null,null,null,null,null,null,"Добавить МО"]
[null,null,null,null,null,null,null,"Добавить МР"]
[]
["et_List09_1"]
[]
[null,"auto",null,null,null,null,1,null,null,1]
[null,null,null,null,null,null,null,null,null,null,"Добавить МО"]
[]
["et_List09_2"]
[]
[null,"auto",null,null,null,null,null,null,null,1]
[]
[]
["et_List07_1"]
[]
[null,null,null,"1",null,"нет",null,1,null,"нет",null,"1",null,null,null,null,null,null,null,null,null,null,null,null,"a",1705000]
[null,null,null,null,null,null,null,null,null,null,null,null,"Добавить централизованную систему холодного водоснабжения"]
[null,null,null,null,null,null,null,null,"Добавить описание территории оказания услуг"]
[]
["et_List07_4"]
[]
[null,null,null,null,null,null,null,1,"","нет",null,"1",null,null,null,null,null,null,null,null,null,null,null,null,"a",1705000]
[null,null,null,null,null,null,null,null,null,null,null,null,"Добавить централизованную систему холодного водоснабжения"]
[]
["et_List07_5"]
[]
[null,null,null,null,null,null,null,null,null,null,null,"1","",null,null,null,null,null,null,null,null,null,null,null,"a",1705000]

{"sheet":"et_union_vert","index":17,"n_rows":0,"n_cols":0,"rows_kept":0,"cut":false,"hidden":true,"merged":[]}

{"sheet":"modList00","index":18,"n_rows":0,"n_cols":0,"rows_kept":0,"cut":false,"hidden":true,"merged":[]}

{"sheet":"modList01","index":19,"n_rows":14,"n_cols":10,"rows_kept":14,"cut":false,"hidden":true,"merged":[[3,3,3,9],[4,3,4,9],[6,3,7,3],[6,4,7,4],[6,5,7,5],[6,6,7,6],[6,8,6,9],[6,7,7,7],[12,7,13,7],[12,3,14,3],[12,4,14,4],[12,5,14,5],[12,6,13,6],[12,8,12,9]]}
[]
[]
[]
[]
[]
[]
[]
[null,null,null,null,null,null,null,null,"Показатель","Комментарий"]
[null,null,null,"1","2","3",null,null,{"$f":"J1&\".1\"","v":".1"},{"$f":"J1&\".2\"","v":".2"}]
[]
[]
[]
[null,null,null,null,null,null,null,null,"Введите наименование централизованной системы холодного водоснабжения"]
[null,null,null,null,null,null,null,null,""]

{"sheet":"modList02","index":20,"n_rows":0,"n_cols":0,"rows_kept":0,"cut":false,"hidden":true,"merged":[[7,3,8,3],[7,4,8,4],[4,3,4,4],[5,3,5,4],[7,5,7,7]]}

{"sheet":"modList03","index":21,"n_rows":0,"n_cols":0,"rows_kept":0,"cut":false,"hidden":true,"merged":[[6,3,6,4],[7,3,7,4]]}

{"sheet":"modList07","index":22,"n_rows":22,"n_cols":26,"rows_kept":22,"cut":false,"hidden":true,"merged":[[3,3,3,8],[4,3,4,8],[5,0,6,5],[7,1,7,3],[17,0,18,0],[17,3,17,4],[17,5,17,8],[7,4,7,5],[8,1,8,3],[8,4,8,5],[11,1,11,3],[12,1,12,3],[13,1,13,3],[21,8,22,8],[21,9,22,9],[9,1,9,3],[9,4,9,5],[10,1,10,3],[10,4,10,5],[21,5,23,5],[24,2,25,2],[17,9,17,12],[18,6,18,7],[18,10,18,11],[19,6,19,7],[19,10,19,11],[21,3,23,3],[21,4,23,4],[21,7,22,7],[21,6,22,6]]}
[]
[]
[]
[]
[]
[]
[]
[]
[]
[]
[]
[]
[]
[]
[]
[]
[]
[]
[]
[]
[]
[null,null,null,null,null,null,null,null,null,null,null,null,null,null,null,null,null,null,null,null,null,null,null,64279412,"a",1705000]

{"sheet":"modList09","index":23,"n_rows":16,"n_cols":4,"rows_kept":16,"cut":false,"hidden":true,"merged":[[12,3,14,3],[12,4,14,4],[12,5,13,5],[12,6,13,6],[12,7,13,7],[8,5,8,7],[8,8,8,11],[9,5,9,6],[9,8,9,9],[10,5,10,6],[10,8,10,9],[3,3,3,7],[4,3,4,7],[6,3,6,4],[6,5,6,6],[8,3,8,4]]}
[]
[]
[]
[]
[]
[]
[]
[]
[]
[]
[]
[null,null,null,0]
[null,"man"]
[]
[]
[null,"man"]

{"sheet":"modHTTP","index":24,"n_rows":0,"n_cols":0,"rows_kept":0,"cut":false,"hidden":true,"merged":[]}

{"sheet":"modfrmRegion","index":25,"n_rows":0,"n_cols":0,"rows_kept":0,"cut":false,"hidden":true,"merged":[]}

{"sheet":"MR_LIST","index":26,"n_rows":0,"n_cols":0,"rows_kept":0,"cut":false,"hidden":true,"merged":[]}

{"sheet":"REESTR_VT","index":27,"n_rows":0,"n_cols":0,"rows_kept":0,"cut":false,"hidden":true,"merged":[]}

{"sheet":"REESTR_VED","index":28,"n_rows":4,"n_cols":2,"rows_kept":4,"cut":false,"hidden":true,"merged":[]}
["ID_TARIFF_NAME","VED_NAME"]
[64235586,"Холодное водоснабжение, в т.ч. подвоз воды"]
[64235587,"Подключение (технологическое присоединение) к централизованной системе водоснабжения"]
[64235585,"Холодное водоснабжение, в т.ч. транспортировка воды, включая распределение воды"]

{"sheet":"modfrmReestrObj","index":29,"n_rows":0,"n_cols":0,"rows_kept":0,"cut":false,"hidden":true,"merged":[]}

{"sheet":"DataOrg","index":30,"n_rows":0,"n_cols":0,"rows_kept":0,"cut":false,"hidden":true,"merged":[]}

{"sheet":"modProv","index":31,"n_rows":0,"n_cols":0,"rows_kept":0,"cut":false,"hidden":true,"merged":[]}

{"sheet":"modReestr","index":32,"n_rows":0,"n_cols":0,"rows_kept":0,"cut":false,"hidden":true,"merged":[]}

{"sheet":"modfrmReestr","index":33,"n_rows":0,"n_cols":0,"rows_kept":0,"cut":false,"hidden":true,"merged":[]}

{"sheet":"modUpdTemplMain","index":34,"n_rows":0,"n_cols":0,"rows_kept":0,"cut":false,"hidden":true,"merged":[]}

{"sheet":"REESTR_ORG","index":35,"n_rows":174,"n_cols":10,"rows_kept":174,"cut":false,"hidden":true,"merged":[]}
["№","REGION_ID","REGION_NAME","RST_ORG_ID","ORG_NAME","INN_NAME","KPP_NAME","ORG_START_DATE","ORG_END_DATE"]
[1,"2665","Хабаровский край","30429183","АО \"179 судоремонтный завод\"","2725078713","272501001",null,null,"VS"]
[2,"2665","Хабаровский край","26322960","АО \"Ванинский морской торговый порт\"","2709001590","997650001",null,null,"VS"]
[3,"2665","Хабаровский край","26560525","АО \"ГУ ЖКХ\"","5116000922","511601001","13-05-2009 00:00:00",null,"VS"]
[4,"2665","Хабаровский край","26322968","АО \"ДГК\" филиал \"Хабаровская генерация\"","1434031363","272102001",null,null,"VS"]
[5,"2665","Хабаровский край","26322945","АО \"Комсомольский-на-Амуре аэропорт\"","2712007419","271201001",null,null,"VS"]
[6,"2665","Хабаровский край","26355251","АО \"Ургалуголь\"","2710001186","271001001",null,null,"VS"]
[7,"2665","Хабаровский край","26448699","АО \"ХАБАРОВСКИЙ АЭРОПОРТ\"","2724083654","272401001",null,null,"VS"]
[8,"2665","Хабаровский край","26451312","Войсковая часть 70822","2720017555","272001001",null,null,"VS"]
[9,"2665","Хабаровский край","26355255","Вяземский лесхозтехникум им. Н.В. Усенко","2711000298","271101001",null,null,"VS"]
[10,"2665","Хабаровский край","27569992","Дальневосточная дирекция по тепловодоснабжению – структурное подразделение Центральной дирекции по тепловодоснабжению – филиала ОАО \"Российские железные дороги\"","7708503727","272445024",null,null,"VS"]
[11,"2665","Хабаровский край","27568014","ИП Пикалова Е.В.","270400138123","отсутствует",null,null,"VS"]
[12,"2665","Хабаровский край","31005449","МКП \"БИМ\"","2704025485","270401001","19-05-2017 00:00:00",null,"VS"]
[13,"2665","Хабаровский край","30990711","МКП \"Гатка\"","2704025566","270401001",null,null,"VS"]
[14,"2665","Хабаровский край","26490498","ММУП \"Коммунальник\"","2708001622","270801001",null,null,"VS"]
[15,"2665","Хабаровский край","30347540","МООО \"Мариинское коммунальное хозяйство\"","2719002561","271901001","03-03-2015 00:00:00",null,"VS"]
[16,"2665","Хабаровский край","28815978","МООО \"Советско-Гаванский водоканал\"","2704023209","270401001",null,null,"VS"]
[17,"2665","Хабаровский край","30347409","МООО \"Сусанинский теплоэнергосервис\"","2719002586","271901001","31-03-2015 00:00:00",null,"VS"]
[18,"2665","Хабаровский край","28815987","МООО \"ТЭП\"","2717005493","271701001",null,null,"VS"]
[19,"2665","Хабаровский край","30347555","МООО \"Тырский ДВ-Союз\"","2719002603","271901001","01-04-2015 00:00:00",null,"VS"]
[20,"2665","Хабаровский край","28424505","МООО \"Энергоресурс\"","2717003383","271701001",null,null,"VS"]
[21,"2665","Хабаровский край","30394078","МУП \"Вектор\"","2711002369","271101001","11-09-2015 00:00:00",null,"VS"]
[22,"2665","Хабаровский край","30930409","МУП \"Водоканал ХМР\"","2720057156","272001001","27-04-2017 00:00:00",null,"VS"]
[23,"2665","Хабаровский край","26451300","МУП \"Горводоканал\" г. Комсомольска-на-Амуре","2727080370","270301001",null,null,"VS"]
[24,"2665","Хабаровский край","30988026","МУП \"ЖКХ БМР\"","2707006233","270701001","16-06-2017 00:00:00",null,"VS"]
[25,"2665","Хабаровский край","27364716","МУП \"ЖКХ Де-Кастринского сельского поселения\"","2719001198","271901001","23-11-2010 00:00:00",null,"VS"]
[26,"2665","Хабаровский край","30365334","МУП \"Корфовское\"","2720052616","272001001",null,null,"VS"]
[27,"2665","Хабаровский край","30373136","МУП \"Куканское\"","2720052542","272001001","08-05-2015 00:00:00",null,"VS"]
[28,"2665","Хабаровский край","28870045","МУП \"Нанайский теплоэнергетический комплекс\"","2714010689","271401001",null,null,"VS"]
[29,"2665","Хабаровский край","28952845","МУП \"Наш город\"","2704016811","270401001",null,null,"VS"]
[30,"2665","Хабаровский край","28751908","МУП \"Николаевские инженерные сети\"","2705021187","270501001",null,null,"VS"]
[31,"2665","Хабаровский край","30355542","МУП \"Николаевские тепловые сети\"","2705000395","270501001","23-06-2015 00:00:00",null,"VS"]
[32,"2665","Хабаровский край","28983374","МУП \"Новатор\"","2720052609","272001001","20-05-2015 00:00:00",null,"VS"]
[33,"2665","Хабаровский край","28983359","МУП \"Осиновореченское\"","2720052623","272001001",null,null,"VS"]
[34,"2665","Хабаровский край","30857010","МУП \"Прогресс\"","2720055198","272001001",null,null,"VS"]
[35,"2665","Хабаровский край","26490494","МУП \"Савинское ЖКХ\"","2719009197","271901001",null,null,"VS"]
[36,"2665","Хабаровский край","31002953","МУП \"Сосновка\"","2720056272","272001001","14-11-2016 00:00:00",null,"VS"]
[37,"2665","Хабаровский край","26449917","МУП \"Софийский ТЭК\"","2719008933","271901001",null,null,"VS"]
[38,"2665","Хабаровский край","26449942","МУП \"Сусанинское ЖКХ\"","2719008877","271901001",null,null,"VS"]
[39,"2665","Хабаровский край","31021121","МУП \"Теплосервис\"","2705001046","270501001",null,null,"VS"]
[40,"2665","Хабаровский край","26355229","МУП \"Теплоцентраль\"","2703004651","270301001",null,null,"VS"]
[41,"2665","Хабаровский край","26413088","МУП \"Хорская ТЭЦ\"","2713013341","271301001",null,null,"VS"]
[42,"2665","Хабаровский край","26355245","МУП \"ЭЖУ Болоньского сельского поселения\"","2706028234","270601001",null,null,"VS"]
[43,"2665","Хабаровский край","31041697","МУП \"Энергетик\"","2705001053","270501001","15-06-2017 00:00:00",null,"VS"]
[44,"2665","Хабаровский край","30959201","МУП \"Янтарь\"","2709016117","270901001",null,null,"VS"]
[45,"2665","Хабаровский край","28077677","МУП КСП \"Киселевское ЖКХ\"","2719002177","271901001",null,null,"VS"]
[46,"2665","Хабаровский край","26620424","МУП СП \"Село Булава\" Булавинское ТЭП\"","2719000268","271901001","16-02-2010 00:00:00",null,"VS"]
[47,"2665","Хабаровский край","28442177","МУП Солонцовского сельского поселения \"Энергия\"","2719002314","271901001",null,null,"VS"]
[48,"2665","Хабаровский край","26761744","МУП ТСП  \"Тырское КХ\"","2719009327","271901001",null,null,"VS"]
[49,"2665","Хабаровский край","26761708","МУП ТСП \"Тахтинский ЖЭК\"","2719000356","271901001",null,null,"VS"]
[50,"2665","Хабаровский край","28818783","МУП УМР \"Циммермановское жилищно-коммунальное хозяйство\"","2719002378","271301001","19-07-2013 00:00:00",null,"VS"]
[51,"2665","Хабаровский край","26451298","МУП г. Хабаровска \"Водоканал\"","2700001300","272150001",null,null,"VS"]
[52,"2665","Хабаровский край","26437970","МУП коммунальных услуг Нанайского муниципального района","2714010061","271401001",null,null,"VS"]
[53,"2665","Хабаровский край","27667837","МХООО \"Энергетик\"","2715009252","271501001",null,null,"VS"]
[54,"2665","Хабаровский край","26355230","ОАО \"Комсомольское-на-Амуре авиационное производственное объединение им. Ю.А. Гагарина\"","2703019760","997850001",null,null,"VS"]
[55,"2665","Хабаровский край","26355286","ОАО \"Корфовский каменный карьер\"","2720002950","272001001",null,null,"VS"]
[56,"2665","Хабаровский край","27570014","ОАО \"РЖД\" (Комсомольская дистанция гражданских сооружений - СП \"Дальневосточной дирекции по эксплуатации зданий и сооружений - СП ДВЖД\" -  филиала ОАО \"РЖД\"","7708503727","272145014",null,null,"VS"]
[57,"2665","Хабаровский край","27356228","ОАО \"Славянка\" Хабаровский филиал","7702707386","272343001","15-06-2010 00:00:00",null,"VS"]
[58,"2665","Хабаровский край","27335784","ОАО \"Славянка\" филиал \"Комсомольский\"","7702707386","270343002","19-05-2011 00:00:00",null,"VS"]
[59,"2665","Хабаровский край","26355300","ОАО Хабаровский нефтеперерабатывающий завод","2722010040","272201001",null,null,"VS"]
[60,"2665","Хабаровский край","26322937","ОАО\"Амурметалл\"","2703000858","270301001",null,null,"VS"]
[61,"2665","Хабаровский край","26604288","ООО \" Вяземский Водоканал\"","2711007913","271101001",null,null,"VS"]
[62,"2665","Хабаровский край","27687070","ООО \"Август ДВ Ком\"","2703030958","270301001",null,null,"VS"]
[63,"2665","Хабаровский край","27747587","ООО \"Август ПЛЮС\"","2709013229","270901001","25-05-2010 00:00:00",null,"VS"]
[64,"2665","Хабаровский край","27569961","ООО \"Альтернатива\"","2720038668","272001001",null,null,"VS"]
[65,"2665","Хабаровский край","30852418","ООО \"АмурТермоЭнерго\"","2721193916","272301001","26-02-2013 00:00:00",null,"VS"]
[66,"2665","Хабаровский край","26355252","ООО \"Артель старателей \"Ниман\"","2710006441","271001001",null,null,"VS"]
[67,"2665","Хабаровский край","28822155","ООО \"БАМСЕРВИС\"","2710008167","271001001",null,null,"VS"]
[68,"2665","Хабаровский край","30990648","ООО \"БАМсервис\"","2717006779","271701001",null,null,"VS"]
[69,"2665","Хабаровский край","26441633","ООО \"Бичевской теплоэнергетик\"","2713015878","271301001",null,null,"VS"]
[70,"2665","Хабаровский край","26449994","ООО \"Богородская ТЭЦ\"","2719009020","271901001",null,null,"VS"]
[71,"2665","Хабаровский край","28443566","ООО \"Богородский ЖКЦ\"","2719002106","271901001",null,null,"VS"]
[72,"2665","Хабаровский край","30477716","ООО \"Булава Премиум\"","2719002804","271901001","24-06-2015 00:00:00",null,"VS"]
[73,"2665","Хабаровский край","28459784","ООО \"ВТ-Ресурс\"","2709014381","270901001",null,null,"VS"]
[74,"2665","Хабаровский край","26512602","ООО \"Водо-канализационное хозяйство\"","2706026692","270601001",null,null,"VS"]
[75,"2665","Хабаровский край","26441951","ООО \"Водоканал \"Восточное\"","2720033910","272001001",null,null,"VS"]
[76,"2665","Хабаровский край","27835832","ООО \"Водоканал района имени Лазо Хабаровского края\"","2721145172","271101001","29-12-2006 00:00:00",null,"VS"]
[77,"2665","Хабаровский край","26629455","ООО \"Водоканал\"","2706027738","270601001",null,null,"VS"]
[78,"2665","Хабаровский край","26437992","ООО \"Водоканал-Транзит\"","2707005060","270701001",null,null,"VS"]
[79,"2665","Хабаровский край","26759840","ООО \"Водоканал-сервис\"","2720042872","272001001",null,null,"VS"]
[80,"2665","Хабаровский край","26441788","ООО \"Галкино\"","2720036928","272001001",null,null,"VS"]
[81,"2665","Хабаровский край","26355244","ООО \"Гарант\"","2706027368","270601001",null,null,"VS"]
[82,"2665","Хабаровский край","26759809","ООО \"Городской водоканал\"","2704020092","270401001",null,null,"VS"]
[83,"2665","Хабаровский край","30395920","ООО \"Дудинский коммунальщик\"","2719002674","271901001","13-04-2015 00:00:00",null,"VS"]
[84,"2665","Хабаровский край","27946094","ООО \"Дудинское коммунальное хозяйство\"","2719002145","271901001",null,null,"VS"]
[85,"2665","Хабаровский край","26620299","ООО \"ЖКХ Многовершинный\"","2705093713","270501001",null,null,"VS"]
[86,"2665","Хабаровский край","28442115","ООО \"ЖКХ Уют\"","2705094499","270501001",null,null,"VS"]
[87,"2665","Хабаровский край","26322942","ООО \"Жил ТЭК\"","2712014335","271201001",null,null,"VS"]
[88,"2665","Хабаровский край","26620114","ООО \"Жилищно-коммунальное хозяйство Оремиф\"","2705093738","270501001",null,null,"VS"]
[89,"2665","Хабаровский край","26620277","ООО \"Жилищно-коммунальное хозяйство Пуир\"","2705093760","270501001",null,null,"VS"]
[90,"2665","Хабаровский край","26620103","ООО \"Жилищно-коммунальное хозяйство Теплоснаб\"","2705099377","270501001",null,null,"VS"]
[91,"2665","Хабаровский край","26355257","ООО \"Жилищно-коммунальный участок № 2\"","2712007320","271201001",null,null,"VS"]
[92,"2665","Хабаровский край","26437773","ООО \"Жилсервис\"","2710014964","271001001",null,null,"VS"]
[93,"2665","Хабаровский край","31005433","ООО \"Импульс\"","2709015988","270901001","27-06-2017 00:00:00",null,"VS"]
[94,"2665","Хабаровский край","30943306","ООО \"Исток\"","2717006761","271701001",null,null,"VS"]
[95,"2665","Хабаровский край","26451316","ООО \"Истстрой-сервис\"","2720036501","272001001",null,null,"VS"]
[96,"2665","Хабаровский край","26413034","ООО \"Коммунальные сети Ракитнинское\"","2720029938","272001001",null,null,"VS"]
[97,"2665","Хабаровский край","26413057","ООО \"Коммунальные сети\"","2720034092","272001001","09-02-2007 00:00:00",null,"VS"]
[98,"2665","Хабаровский край","26355294","ООО \"Коммунальные услуги села Заозерное\"","2720034110","272001001",null,null,"VS"]
[99,"2665","Хабаровский край","27364662","ООО \"Коммунальщик\"","2705093992","270501001","17-06-2011 00:00:00",null,"VS"]
[100,"2665","Хабаровский край","27568054","ООО \"Коммунальщик\"","2710015848","271001001",null,null,"VS"]
[101,"2665","Хабаровский край","28262761","ООО \"Коммунальщик+\"","2710002422","271001001",null,null,"VS"]
[102,"2665","Хабаровский край","28799432","ООО \"Комресурс\"","2710007981","271001001",null,null,"VS"]
[103,"2665","Хабаровский край","27568058","ООО \"Комсервис 2\"","2710015855","271001001",null,null,"VS"]
[104,"2665","Хабаровский край","28253059","ООО \"Комсервис\"","2710002165","271001001",null,null,"VS"]
[105,"2665","Хабаровский край","28874792","ООО \"Комсервис\"","2720050390","272001001","28-03-2014 00:00:00",null,"VS"]
[106,"2665","Хабаровский край","26607481","ООО \"Краснореченское\"","2720039911","272001001",null,null,"VS"]
[107,"2665","Хабаровский край","28546645","ООО \"Лермонтовское жилищно-эксплуатационное управление\"","2707005085","270701001",null,null,"VS"]
[108,"2665","Хабаровский край","27546636","ООО \"МЖКХ Нанайского муниципального района\"","2714010382","271401001","24-08-2011 00:00:00",null,"VS"]
[109,"2665","Хабаровский край","26441768","ООО \"ММО \"Гаровский водозабор\"","2720035385","272001001",null,null,"VS"]
[110,"2665","Хабаровский край","28952349","ООО \"МО\"Водоканал\"","2720051436","272001001","01-10-2014 00:00:00",null,"VS"]
[111,"2665","Хабаровский край","26441835","ООО \"Малышевское\"","2720036780","272001001",null,null,"VS"]
[112,"2665","Хабаровский край","30366502","ООО \"Масштаб\"","2706022320","270601001",null,null,"VS"]
[113,"2665","Хабаровский край","26355292","ООО \"Межмуниципальное общество \"Уссурийское\"","2720033564","272001001",null,null,"VS"]
[114,"2665","Хабаровский край","26451318","ООО \"НИК\"","2720035219","272001001",null,null,"VS"]
[115,"2665","Хабаровский край","27946038","ООО \"Неон-Плюс\"","2705091226","270501001",null,null,"VS"]
[116,"2665","Хабаровский край","27947312","ООО \"Оазис\"","2706030709","270601001",null,null,"VS"]
[117,"2665","Хабаровский край","28819672","ООО \"Платина\"","2705094883","270501001","16-05-2014 00:00:00",null,"VS"]
[118,"2665","Хабаровский край","26593862","ООО \"Прогресс\"","2711007896","271101001",null,null,"VS"]
[119,"2665","Хабаровский край","28858967","ООО \"Прогресс\"","2724193872","272001001",null,null,"VS"]
[120,"2665","Хабаровский край","30430995","ООО \"Прометей\"","2719002875","271901001","14-09-2015 00:00:00",null,"VS"]
[121,"2665","Хабаровский край","28018694","ООО \"Ресурс-ДВ\"","2717001139","271701001",null,null,"VS"]
[122,"2665","Хабаровский край","30395964","ООО \"Савинское коммунальное хозяйство\"","2719002699","271901001","21-04-2015 00:00:00",null,"VS"]
[123,"2665","Хабаровский край","26441637","ООО \"Святогорский коммунальщик\"","2713015814","271301001",null,null,"VS"]
[124,"2665","Хабаровский край","30390717","ООО \"Святогорский теплотехник\"","2713018519","271301001","05-05-2015 00:00:00",null,"VS"]
[125,"2665","Хабаровский край","26646176","ООО \"Сергеевка\"","2720042706","272001001",null,null,"VS"]
[126,"2665","Хабаровский край","27718564","ООО \"Сетевик\"","2704020977","270401001",null,null,"VS"]
[127,"2665","Хабаровский край","27573125","ООО \"Синергия\"","2715005515","271501001",null,null,"VS"]
[128,"2665","Хабаровский край","30395929","ООО \"Солонцовский ЖКХ Сервис\"","2719002667","271901001","02-04-2015 00:00:00",null,"VS"]
[129,"2665","Хабаровский край","30398832","ООО \"Софийское коммунальное хозяйство\"","2719002748","271901001","01-06-2015 00:00:00",null,"VS"]
[130,"2665","Хабаровский край","28043001","ООО \"Союз\"","2704021730","270401001",null,null,"VS"]
[131,"2665","Хабаровский край","26512608","ООО \"Станция механической очистки\"","2706027664","270601001",null,null,"VS"]
[132,"2665","Хабаровский край","28043404","ООО \"Сукпайский Теплотехник\"","2713017339","271301001",null,null,"VS"]
[133,"2665","Хабаровский край","26448141","ООО \"ТЭК с. Хурба\"","2712008317","271201001",null,null,"VS"]
[134,"2665","Хабаровский край","30395873","ООО \"Тепло Плюс\"","2713018413","271301001","04-02-2015 00:00:00",null,"VS"]
[135,"2665","Хабаровский край","30364226","ООО \"ТеплоРесурс\"","2709014920","270901001","03-06-2014 00:00:00",null,"VS"]
[136,"2665","Хабаровский край","28147334","ООО \"ТеплоСервисДВ\"","2709014254","270901001",null,null,"VS"]
[137,"2665","Хабаровский край","30823785","ООО \"Тепловые сети\"","2713013084","271301001","11-02-2005 00:00:00",null,"VS"]
[138,"2665","Хабаровский край","26451534","ООО \"Теплосервис\"","2709011937","270901001",null,null,"VS"]
[139,"2665","Хабаровский край","30365266","ООО \"Теплосервис\"","2717005951","271701001",null,null,"VS"]
[140,"2665","Хабаровский край","26438185","ООО \"Теплотехник\"","2713015571","271301001",null,null,"VS"]
[141,"2665","Хабаровский край","27572712","ООО \"Теплотехник\"","2713016977","271301001",null,null,"VS"]
[142,"2665","Хабаровский край","28271504","ООО \"Теплоэнергетик р.п. Переяславка\"","2713017748","271301001",null,null,"VS"]
[143,"2665","Хабаровский край","28441254","ООО \"Транснефть - Дальний Восток\"","2724132118","272101001",null,null,"VS"]
[144,"2665","Хабаровский край","27687078","ООО \"УК \"Дземги\"","2703055832","270301001",null,null,"VS"]
[145,"2665","Хабаровский край","28822172","ООО \"Управляющая компания\"","2712002033","271201001",null,null,"VS"]
[146,"2665","Хабаровский край","26437603","ООО \"Услуга\"","2709012835","270801001",null,null,"VS"]
[147,"2665","Хабаровский край","26604498","ООО \"Феникс\"","2711007889","271101001",null,null,"VS"]
[148,"2665","Хабаровский край","30365554","ООО \"Форест-ДВ\"","2713014842","271301001","10-11-2006 00:00:00",null,"VS"]
[149,"2665","Хабаровский край","28485111","ООО \"Хабспиртпром\"","2725051052","272501001",null,null,"VS"]
[150,"2665","Хабаровский край","26448134","ООО \"Шел ТЭК\"","2712014134","271201001",null,null,"VS"]
[151,"2665","Хабаровский край","27679767","ООО \"ЭКО-Фаэтон\"","2705093199","270501001",null,null,"VS"]
[152,"2665","Хабаровский край","30478818","ООО \"Эдельвейс\"","2713015349","271301001","01-09-2015 00:00:00",null,"VS"]
[153,"2665","Хабаровский край","28829468","ООО \"Эдельвейс\"","2719002201","271901001","16-11-2012 00:00:00",null,"VS"]
[154,"2665","Хабаровский край","30985661","ООО \"Эксплуатирующая компания индустриального парка \"Авангард\"","2724213536","272401001","29-06-2016 00:00:00",null,"VS"]
[155,"2665","Хабаровский край","26593691","ООО \"Эльгинская теплоснабжающая организация\"","2710015340","271001001",null,null,"VS"]
[156,"2665","Хабаровский край","26441619","ООО \"Энергетик\" п. Хор","2713013020","271301001",null,null,"VS"]
[157,"2665","Хабаровский край","27335574","ООО \"Энерго-Сервис\"","2720044020","272001001","18-03-2011 00:00:00",null,"VS"]
[158,"2665","Хабаровский край","30869093","ООО \"Энергоресурсы\"","2709015593","270901001",null,null,"VS"]
[159,"2665","Хабаровский край","26382169","ООО \"Янтарь\"","2709012673","270901001",null,null,"VS"]
[160,"2665","Хабаровский край","30351301","ООО «ТВС-Сервис»","2710008431","271001001","08-12-2014 00:00:00",null,"VS"]
[161,"2665","Хабаровский край","30366513","ООО УК \"ВекторСтрой\"","2706021969","270601001",null,null,"VS"]
[162,"2665","Хабаровский край","28983865","ООО УК ЖКХ \"Лидер\"","2707005889","270701001","10-02-2015 00:00:00",null,"VS"]
[163,"2665","Хабаровский край","26437859","ООО УПП \"Городской коммунальщик\"","2711007550","271101001",null,null,"VS"]
[164,"2665","Хабаровский край","30939348","Обособленное подразделение Санаторий-Профилакторий \"Горячий Ключ\"","7708503727","270345049","12-08-2015 00:00:00",null,"VS"]
[165,"2665","Хабаровский край","30376618","Общество с ограниченной ответственностью \"Киселевский энергетик\"","2719002794","271901001",null,null,"VS"]
[166,"2665","Хабаровский край","27364970","Охотский филиал ОАО \"Теплоэнергосервис\"","1435191592","271543001","29-08-2007 00:00:00",null,"VS"]
[167,"2665","Хабаровский край","28147386","Рыболовецкая артель (колхоз) им. 50 лет Октября","2709001128","270901001",null,null,"VS"]
[168,"2665","Хабаровский край","28262200","УФСБ РФ по Хабаровскому краю","2721010351","272101001",null,null,"VS"]
[169,"2665","Хабаровский край","30926365","ФГБУ «ЦЖКУ» МО РФ (Филиал ФГБУ «ЦЖКУ» МО РФ по ВВО)","7729314745","272443001","20-03-2017 00:00:00",null,"VS"]
[170,"2665","Хабаровский край","26451314","ФГУП \"Племенной птицеводческий завод\"","2720001594","271401001",null,null,"VS"]
[171,"2665","Хабаровский край","26448726","ФГУП \"РТРС\" филиал  \"Дальневосточный региональный центр\"","7717127211","272102002",null,null,"VS"]
[172,"2665","Хабаровский край","28141640","Филиал ПАО \"Компания \"Сухой\" \"КнААЗ им. Ю.А. Гагарина\"","7740000090","270303001","01-01-2013 00:00:00",null,"VS"]
[173,"2665","Хабаровский край","28048502","войсковая часть № 6767","2720022996","272001001",null,null,"VS"]

{"sheet":"modClassifierValidate","index":36,"n_rows":0,"n_cols":0,"rows_kept":0,"cut":false,"hidden":true,"merged":[]}

{"sheet":"modHyp","index":37,"n_rows":0,"n_cols":0,"rows_kept":0,"cut":false,"hidden":true,"merged":[]}

{"sheet":"modfrmDateChoose","index":38,"n_rows":0,"n_cols":0,"rows_kept":0,"cut":false,"hidden":true,"merged":[]}

{"sheet":"modComm","index":39,"n_rows":0,"n_cols":0,"rows_kept":0,"cut":false,"hidden":true,"merged":[]}

{"sheet":"modThisWorkbook","index":40,"n_rows":0,"n_cols":0,"rows_kept":0,"cut":false,"hidden":true,"merged":[]}

{"sheet":"REESTR_MO","index":41,"n_rows":222,"n_cols":4,"rows_kept":222,"cut":false,"hidden":true,"merged":[]}
["№","МР","МО","МО_ОКТМО"]
[1,"Амурский муниципальный район","Болоньское","08603420"]
[2,"Амурский муниципальный район","Вознесенское","08603402"]
[3,"Амурский муниципальный район","Город Амурск","08603101"]
[4,"Амурский муниципальный район","Джуенское","08603404"]
[5,"Амурский муниципальный район","Литовское","08603405"]
[6,"Амурский муниципальный район","Омминское","08603407"]
[7,"Амурский муниципальный район","Падалинское","08603410"]
[8,"Амурский муниципальный район","Санболинское","08603413"]
[9,"Амурский муниципальный район","Эльбанское","08603160"]
[10,"Амурский муниципальный район","село Ачан","08603401"]
[11,"Аяно-Майский муниципальный район","Аимское","08606402"]
[12,"Аяно-Майский муниципальный район","Джигдинское","08606413"]
[13,"Аяно-Майский муниципальный район","Межселенные территории, входящие в состав Аяно-Майского муниципального района, включающие с Федорово, монтерский пункт Разрезной и др.","08606701"]
[14,"Аяно-Майский муниципальный район","Нельканское","08606416"]
[15,"Аяно-Майский муниципальный район","село Аян","08606403"]
[16,"Бикинский муниципальный район","Бойцовское","08609402"]
[17,"Бикинский муниципальный район","Город Бикин","08609101"]
[18,"Бикинский муниципальный район","Добролюбовское","08609406"]
[19,"Бикинский муниципальный район","Лермонтовское","08609408"]
[20,"Бикинский муниципальный район","Лесопильненское","08609407"]
[21,"Бикинский муниципальный район","Лончаковское","08609410"]
[22,"Бикинский муниципальный район","Оренбургское","08609412"]
[23,"Бикинский муниципальный район","Покровское","08609416"]
[24,"Бикинский муниципальный район","Пушкинское","08609420"]
[25,"Ванинский муниципальный район","Даттинское","08612405"]
[26,"Ванинский муниципальный район","Кенадское","08612410"]
[27,"Ванинский муниципальный район","Монгохтинское","08612411"]
[28,"Ванинский муниципальный район","Поселок Ванино","08612151"]
[29,"Ванинский муниципальный район","Поселок Высокогорный","08612155"]
[30,"Ванинский муниципальный район","Поселок Октябрьский","08612159"]
[31,"Ванинский муниципальный район","Токинское","08612412"]
[32,"Ванинский муниципальный район","Тулучинское","08612413"]
[33,"Ванинский муниципальный район","Тумнинское","08612414"]
[34,"Ванинский муниципальный район","Уська-Орочское","08612415"]
[35,"Верхнебуреинский муниципальный район","Аланапское","08614402"]
[36,"Верхнебуреинский муниципальный район","Алонкинское","08614401"]
[37,"Верхнебуреинский муниципальный район","Гербинское","08614405"]
[38,"Верхнебуреинский муниципальный район","Межселенные территории, входящие в состав Верхнебуреинского муниципального района, включающие п Шахтинский","08614701"]
[39,"Верхнебуреинский муниципальный район","Поселок Новый Ургал","08614153"]
[40,"Верхнебуреинский муниципальный район","Поселок Чегдомын","08614151"]
[41,"Верхнебуреинский муниципальный район","Согдинское","08614409"]
[42,"Верхнебуреинский муниципальный район","Среднеургальское","08614408"]
[43,"Верхнебуреинский муниципальный район","Сулукское","08614403"]
[44,"Верхнебуреинский муниципальный район","Тырминское","08614412"]
[45,"Верхнебуреинский муниципальный район","Усть-Ургальское","08614407"]
[46,"Верхнебуреинский муниципальный район","Чекундинское","08614410"]
[47,"Верхнебуреинский муниципальный район","Этыркэнское","08614418"]
[48,"Верхнебуреинский муниципальный район","поселок Софийск","08614411"]
[49,"Вяземский муниципальный район","Аванское","08617437"]
[50,"Вяземский муниципальный район","Венюковское","08617404"]
[51,"Вяземский муниципальный район","Видновское","08617407"]
[52,"Вяземский муниципальный район","Виноградовское","08617410"]
[53,"Вяземский муниципальный район","Глебовское","08617412"]
[54,"Вяземский муниципальный район","Город Вяземский","08617101"]
[55,"Вяземский муниципальный район","Дормидонтовское","08617416"]
[56,"Вяземский муниципальный район","Забайкальское","08617418"]
[57,"Вяземский муниципальный район","Капитоновское","08617420"]
[58,"Вяземский муниципальный район","Кедровское","08617422"]
[59,"Вяземский муниципальный район","Котиковское","08617424"]
[60,"Вяземский муниципальный район","Красицкое","08617426"]
[61,"Вяземский муниципальный район","Кукелевское","08617428"]
[62,"Вяземский муниципальный район","Медвеженское","08617432"]
[63,"Вяземский муниципальный район","Отрадненское","08617438"]
[64,"Вяземский муниципальный район","Садовое","08617439"]
[65,"Вяземский муниципальный район","Шереметьевское","08617440"]
[66,"Вяземский муниципальный район","Шумнинское","08617444"]
[67,"Вяземский муниципальный район","поселок Дормидонтовка","08617413"]
[68,"Город Комсомольск-на-Амуре","Город Комсомольск-на-Амуре","08709000"]
[69,"Город Хабаровск","Город Хабаровск","08701000"]
[70,"Комсомольский муниципальный район","Бельговское","08620404"]
[71,"Комсомольский муниципальный район","Бокторское","08620405"]
[72,"Комсомольский муниципальный район","Большекартельское","08620407"]
[73,"Комсомольский муниципальный район","Верхнетамбовское","08620410"]
[74,"Комсомольский муниципальный район","Гайтерское","08620413"]
[75,"Комсомольский муниципальный район","Галичное","08620467"]
[76,"Комсомольский муниципальный район","Гурское","08620468"]
[77,"Комсомольский муниципальный район","Даппинское","08620419"]
[78,"Комсомольский муниципальный район","Кенайское","08620430"]
[79,"Комсомольский муниципальный район","Молодежное","08620435"]
[80,"Комсомольский муниципальный район","Нижнетамбовское","08620437"]
[81,"Комсомольский муниципальный район","Нижнехалбинское","08620440"]
[82,"Комсомольский муниципальный район","Новоильиновское","08620443"]
[83,"Комсомольский муниципальный район","Новомирское","08620446"]
[84,"Комсомольский муниципальный район","Пиваньское","08620447"]
[85,"Комсомольский муниципальный район","Селихинское","08620449"]
[86,"Комсомольский муниципальный район","Снежинское","08620452"]
[87,"Комсомольский муниципальный район","Уктурское","08620455"]
[88,"Комсомольский муниципальный район","Хурбинское","08620461"]
[89,"Комсомольский муниципальный район","Эконьское","08620476"]
[90,"Комсомольский муниципальный район","Ягодненское","08620470"]
[91,"Нанайский муниципальный район","Арсеньевское","08628402"]
[92,"Нанайский муниципальный район","Верхнеманоминское","08628407"]
[93,"Нанайский муниципальный район","Верхненергенское","08628427"]
[94,"Нанайский муниципальный район","Дадинское","08628416"]
[95,"Нанайский муниципальный район","Джаринское","08628419"]
[96,"Нанайский муниципальный район","Джонкинское","08628422"]
[97,"Нанайский муниципальный район","Дубовомысское","08628423"]
[98,"Нанайский муниципальный район","Иннокентьевское","08628424"]
[99,"Нанайский муниципальный район","Лидогинское","08628425"]
[100,"Нанайский муниципальный район","Маякское","08628428"]
[101,"Нанайский муниципальный район","Найхинское","08628431"]
[102,"Нанайский муниципальный район","Нижнеманоминское","08628434"]
[103,"Нанайский муниципальный район","Синдинское","08628437"]
[104,"Нанайский муниципальный район","село Троицкое","08628439"]
[105,"Николаевский муниципальный район","Город Николаевск-на-Амуре","08631101"]
[106,"Николаевский муниципальный район","Иннокентьевское","08631404"]
[107,"Николаевский муниципальный район","Коасносельское","08631413"]
[108,"Николаевский муниципальный район","Константиновское","08631431"]
[109,"Николаевский муниципальный район","Магинское","08631414"]
[110,"Николаевский муниципальный район","Межселенная территория Николаевского муниципального района, включающая с Власьево","08631701"]
[111,"Николаевский муниципальный район","Нигирское","08631419"]
[112,"Николаевский муниципальный район","Нижнепронгенское","08631422"]
[113,"Николаевский муниципальный район","Озерпахское","08631425"]
[114,"Николаевский муниципальный район","Орель-Члянское","08631428"]
[115,"Николаевский муниципальный район","Оремифское","08631437"]
[116,"Николаевский муниципальный район","Поселок Лазарев","08631154"]
[117,"Николаевский муниципальный район","Поселок Многовершинный","08631158"]
[118,"Николаевский муниципальный район","Пуирское","08631434"]
[119,"Николаевский муниципальный район","Члянское","08631410"]
[120,"Охотский муниципальный район","Аркинское","08634402"]
[121,"Охотский муниципальный район","Булгинское","08634404"]
[122,"Охотский муниципальный район","Вострецовское","08634407"]
[123,"Охотский муниципальный район","Инское","08634410"]
[124,"Охотский муниципальный район","Морское","08634412"]
[125,"Охотский муниципальный район","Новоустьинское","08634414"]
[126,"Охотский муниципальный район","Поселок Охотск","08634151"]
[127,"Охотский муниципальный район","Резидентское","08634416"]
[128,"Советско-Гаванский муниципальный район","Гаткинское","08642402"]
[129,"Советско-Гаванский муниципальный район","Город Советская Гавань","08642101"]
[130,"Советско-Гаванский муниципальный район","Межселенные территории, входящие в состав Советско-Гаванского муниципального района, включающие п Нельма, п Коппи и др.","08642701"]
[131,"Советско-Гаванский муниципальный район","Поселок Заветы Ильича","08642159"]
[132,"Советско-Гаванский муниципальный район","Поселок Лососина","08642162"]
[133,"Советско-Гаванский муниципальный район","Поселок Майский","08642165"]
[134,"Солнечный муниципальный район","Амгуньское","08644402"]
[135,"Солнечный муниципальный район","Березовское","08644404"]
[136,"Солнечный муниципальный район","Горинское","08644406"]
[137,"Солнечный муниципальный район","Джамкуское","08644408"]
[138,"Солнечный муниципальный район","Дукинское","08644410"]
[139,"Солнечный муниципальный район","Кондонское","08644416"]
[140,"Солнечный муниципальный район","Поселок Горный","08644153"]
[141,"Солнечный муниципальный район","Поселок Солнечный","08644151"]
[142,"Солнечный муниципальный район","Харпичанское","08644425"]
[143,"Солнечный муниципальный район","Хурмулинское","08644428"]
[144,"Солнечный муниципальный район","Эворонское","08644430"]
[145,"Тугуро-Чумиканский муниципальный район","Алгазеинское","08646402"]
[146,"Тугуро-Чумиканский муниципальный район","Межселенные территории, входящие в состав Тугуро-Чумиканского муниципального района, включающие метеостанцию Большой Шантар, метеостанцию Бурукаи и др.","08646701"]
[147,"Тугуро-Чумиканский муниципальный район","Торомское","08646404"]
[148,"Тугуро-Чумиканский муниципальный район","Тугурское","08646407"]
[149,"Тугуро-Чумиканский муниципальный район","Удское","08646410"]
[150,"Тугуро-Чумиканский муниципальный район","село Чумикан","08646411"]
[151,"Ульчский муниципальный район","Быстринское","08650409"]
[152,"Ульчский муниципальный район","Де-Кастринское","08650413"]
[153,"Ульчский муниципальный район","Дудинское","08650416"]
[154,"Ульчский муниципальный район","Калиновское","08650419"]
[155,"Ульчский муниципальный район","Киселевское","08650422"]
[156,"Ульчский муниципальный район","Мариинское","08650425"]
[157,"Ульчский муниципальный район","Нижнегаванское","08650428"]
[158,"Ульчский муниципальный район","Савинское","08650431"]
[159,"Ульчский муниципальный район","Санниковское","08650434"]
[160,"Ульчский муниципальный район","Село Богородское","08650401"]
[161,"Ульчский муниципальный район","Село Булава","08650407"]
[162,"Ульчский муниципальный район","Солонцовское","08650437"]
[163,"Ульчский муниципальный район","Софийское","08650440"]
[164,"Ульчский муниципальный район","Сусанинское","08650443"]
[165,"Ульчский муниципальный район","Тахтинское","08650449"]
[166,"Ульчский муниципальный район","Тырское","08650452"]
[167,"Ульчский муниципальный район","Ухтинское","08650455"]
[168,"Ульчский муниципальный район","Циммермановское","08650458"]
[169,"Хабаровский муниципальный район","Анастасьевское","08655402"]
[170,"Хабаровский муниципальный район","Бычихинское","08655407"]
[171,"Хабаровский муниципальный район","Восточное","08655476"]
[172,"Хабаровский муниципальный район","Галкинское","08655412"]
[173,"Хабаровский муниципальный район","Дружбинское","08655415"]
[174,"Хабаровский муниципальный район","Елабужское","08655416"]
[175,"Хабаровский муниципальный район","Ильинское","08655419"]
[176,"Хабаровский муниципальный район","Казакевичевское","08655422"]
[177,"Хабаровский муниципальный район","Князе-Волконское","08655425"]
[178,"Хабаровский муниципальный район","Корсаковское","08655431"]
[179,"Хабаровский муниципальный район","Куканское","08655434"]
[180,"Хабаровский муниципальный район","Малышевское","08655437"]
[181,"Хабаровский муниципальный район","Мирненское","08655440"]
[182,"Хабаровский муниципальный район","Мичуринское","08655443"]
[183,"Хабаровский муниципальный район","Наумовское","08655445"]
[184,"Хабаровский муниципальный район","Некрасовское","08655448"]
[185,"Хабаровский муниципальный район","Новокуровское","08655452"]
[186,"Хабаровский муниципальный район","Осиновореченское","08655453"]
[187,"Хабаровский муниципальный район","Петропавловское","08655455"]
[188,"Хабаровский муниципальный район","Побединское","08655458"]
[189,"Хабаровский муниципальный район","Поселок Корфовский","08655155"]
[190,"Хабаровский муниципальный район","Ракитненское","08655459"]
[191,"Хабаровский муниципальный район","Сергеевское","08655460"]
[192,"Хабаровский муниципальный район","Сикачи-Алянское","08655462"]
[193,"Хабаровский муниципальный район","Тополевское","08655465"]
[194,"Хабаровский муниципальный район","Улика-Национальное","08655467"]
[195,"Хабаровский муниципальный район","Челнинское","08655473"]
[196,"им. Лазо муниципальный район","Бичевское","08624402"]
[197,"им. Лазо муниципальный район","Гвасюгинское","08624407"]
[198,"им. Лазо муниципальный район","Георгиевское","08624404"]
[199,"им. Лазо муниципальный район","Долминское","08624410"]
[200,"им. Лазо муниципальный район","Дурминское","08624413"]
[201,"им. Лазо муниципальный район","Золотинское","08624416"]
[202,"им. Лазо муниципальный район","Кондратьевское","08624422"]
[203,"им. Лазо муниципальный район","Кругликовское","08624425"]
[204,"им. Лазо муниципальный район","Марусинское","08624428"]
[205,"им. Лазо муниципальный район","Могилевское","08624431"]
[206,"им. Лазо муниципальный район","Оборское","08624434"]
[207,"им. Лазо муниципальный район","Полетнинское","08624437"]
[208,"им. Лазо муниципальный район","Поселок Мухен","08624154"]
[209,"им. Лазо муниципальный район","Поселок Переяславка","08624151"]
[210,"им. Лазо муниципальный район","Поселок Хор","08624157"]
[211,"им. Лазо муниципальный район","Святогорское","08624440"]
[212,"им. Лазо муниципальный район","Сидиминское","08624443"]
[213,"им. Лазо муниципальный район","Ситинское","08624446"]
[214,"им. Лазо муниципальный район","Сукпайское","08624450"]
[215,"им. Лазо муниципальный район","Черняевское","08624452"]
[216,"им. Полины Осипенко муниципальный район","Бриаканское","08637402"]
[217,"им. Полины Осипенко муниципальный район","Владимировское","08637404"]
[218,"им. Полины Осипенко муниципальный район","Межселенные территории, входящие в состав муниципального района имени Полины Осипенко, включающие п Октябрьский, гидрологический пост Обхорошее и др.","08637701"]
[219,"им. Полины Осипенко муниципальный район","Удинское","08637416"]
[220,"им. Полины Осипенко муниципальный район","Херпучинское","08637419"]
[221,"им. Полины Осипенко муниципальный район","им. Полины Осипенко","08637406"]

{"sheet":"modfrmReestrMR","index":42,"n_rows":0,"n_cols":0,"rows_kept":0,"cut":false,"hidden":true,"merged":[]}

{"sheet":"modServiceModule","index":43,"n_rows":0,"n_cols":0,"rows_kept":0,"cut":false,"hidden":true,"merged":[]}

{"sheet":"modfrmCheckUpdates","index":44,"n_rows":0,"n_cols":0,"rows_kept":0,"cut":false,"hidden":true,"merged":[]}

{"sheet":"REESTR_DS","index":45,"n_rows":5,"n_cols":2,"rows_kept":5,"cut":false,"hidden":true,"merged":[]}
[]
[]
[null,"Хабаровский муниципальный район, пос.Корфовский (08655155)"]
[null,"описание 2"]
[null,"Добавить "]

{"sheet":"REESTR_CHS","index":46,"n_rows":0,"n_cols":0,"rows_kept":0,"cut":false,"hidden":true,"merged":[]}

{"sheet":"REESTR_LINK","index":47,"n_rows":2,"n_cols":3,"rows_kept":2,"cut":false,"hidden":true,"merged":[]}
["ID","LINK_NAME","REGION"]
[64275710,"https://tariff.eias.ru/disclo/get_file?p_guid=????????-????-????-????-????????????","ALL"]